2CCN - Level 2 Cost Centre Name,,9CCN - Level 9 Cost Centre Name,9CCC - Level 9 Cost Centre Code,9AN - Level 9 Account Name,9AC - Level 9 Account Code,Date posted,Date of transaction,Merchant Name,MerchantCity,Originating Account Name,Originating Account Number,MCC/SIC Code,MCC Description,Original Amount,Currency,Conversion Rate,Billed Amount,DebitCredit,ReferenceNbr,Statement Cycle,AccountName
Gloucester City Council,23UE,TIC STAMP SALES,LT102,POSTAGES,5400,14/05/2015,13/05/2015,ROYAL MAIL,8457640640,REDACTED,471565******4015,9402,POSTAGE STAMPS,982.8,Pound Sterling (826),1,982.8,Debit,7.47451E+22,02/06/2015,GLOUCESTER CC
Gloucester City Council,23UE,HOMELESSNESS,CH120,BOARD AND LODGING,5515,15/05/2015,14/05/2015,TRAVELODGE WEBSITE,RESERVATION,REDACTED,471565******1443,3615,TRAVELODGE,404,Pound Sterling (826),1,404,Debit,7.44247E+22,02/06/2015,GLOUCESTER CC
Gloucester City Council,23UE,HOMELESSNESS,CH120,BOARD AND LODGING,5515,15/05/2015,14/05/2015,TRAVELODGE WEBSITE,RESERVATION,REDACTED,471565******1443,3615,TRAVELODGE,48,Pound Sterling (826),1,48,Debit,7.44247E+22,02/06/2015,GLOUCESTER CC
Gloucester City Council,23UE,HOMELESSNESS,CH120,BOARD AND LODGING,5515,18/05/2015,15/05/2015,TRAVELODGE WEBSITE,RESERVATION,REDACTED,471565******1443,3615,TRAVELODGE,170,Pound Sterling (826),1,170,Debit,7.44247E+22,02/06/2015,GLOUCESTER CC
Gloucester City Council,23UE,HOMELESSNESS,CH120,BOARD AND LODGING,5515,19/05/2015,18/05/2015,TRAVELODGE WEBSITE,RESERVATION,REDACTED,471565******1443,3615,TRAVELODGE,246,Pound Sterling (826),1,246,Debit,7.44247E+22,02/06/2015,GLOUCESTER CC
Gloucester City Council,23UE,DOCKS COMPLEX - CATERING SERVS,RB110,CATERING PROVISIONS -FOOD,5110,06/05/2015,05/05/2015,TESCO STORE 2581,GLOUCESTER,REDACTED,471565******8223,5411,GROCERY STORES  SUPERMARKETS,8.8,Pound Sterling (826),1,8.8,Debit,7.46971E+22,02/06/2015,GLOUCESTER CC
Gloucester City Council,23UE,DOCKS COMPLEX - SERVICES,RB100,OPERATIONAL EQUIPMENT <5000,5012,06/05/2015,05/05/2015,B & Q,GLOUCESTER GL,REDACTED,471565******8223,5211,LUMBER AND BUILDING MATERIALS STORES,7.96,Pound Sterling (826),1,7.96,Debit,7.45792E+22,02/06/2015,GLOUCESTER CC
Gloucester City Council,23UE,DOCKS COMPLEX - CATERING SERVS,RB110,CATERING PROVISIONS -FOOD,5110,06/05/2015,05/05/2015,WWW.NISBETS.COM,0845 1110281,REDACTED,471565******8223,5964,CATALOG MERCHANTS,149.68,Pound Sterling (826),1,149.68,Debit,7.45792E+22,02/06/2015,GLOUCESTER CC
Gloucester City Council,23UE,DOCKS COMPLEX - SERVICES,RB100,OPERATIONAL EQUIPMENT <5000,5012,07/05/2015,06/05/2015,B & Q,GLOUCESTER GL,REDACTED,471565******8223,5211,LUMBER AND BUILDING MATERIALS STORES,18.86,Pound Sterling (826),1,18.86,Debit,7.45792E+22,02/06/2015,GLOUCESTER CC
Gloucester City Council,23UE,DOCKS COMPLEX - SERVICES,RB100,OPERATIONAL EQUIPMENT <5000,5012,11/05/2015,08/05/2015,B & Q,GLOUCESTER GL,REDACTED,471565******8223,5211,LUMBER AND BUILDING MATERIALS STORES,56.06,Pound Sterling (826),1,56.06,Debit,7.45792E+22,02/06/2015,GLOUCESTER CC
Gloucester City Council,23UE,DOCKS COMPLEX - SERVICES,RB100,UNIFORMS,5201,12/05/2015,11/05/2015,SAFPRO INDUSTRIAL SUPPLY,GLOUCESTER,REDACTED,471565******8223,5085,INDUSTRIAL SUPPLIES NOT ELSEWHERE CLASSI,134.78,Pound Sterling (826),1,134.78,Debit,7.40853E+22,02/06/2015,GLOUCESTER CC
Gloucester City Council,23UE,DOCKS COMPLEX - SERVICES,RB100,UNIFORMS,5201,13/05/2015,12/05/2015,SAFPRO INDUSTRIAL SUPPLY,GLOUCESTER,REDACTED,471565******8223,5085,INDUSTRIAL SUPPLIES NOT ELSEWHERE CLASSI,50.95,Pound Sterling (826),1,50.95,Debit,7.40853E+22,02/06/2015,GLOUCESTER CC
Gloucester City Council,23UE,DOCKS COMPLEX - SERVICES,RB100,OPERATIONAL EQUIPMENT <5000,5012,01/06/2015,29/05/2015,B & Q,GLOUCESTER GL,REDACTED,471565******8223,5211,LUMBER AND BUILDING MATERIALS STORES,30.76,Pound Sterling (826),1,30.76,Debit,7.45792E+22,02/06/2015,GLOUCESTER CC
Gloucester City Council,23UE,DOCKS COMPLEX - SERVICES,RB100,CATERING PROVISIONS -FOOD,5110,01/06/2015,29/05/2015,HOBBY CRAFT LTD,GLOUCESTER 22,REDACTED,471565******8223,5970,ARTIST SUPPLY STORES  CRAFT SHOPS,8,Pound Sterling (826),1,8,Debit,7.48305E+22,02/06/2015,GLOUCESTER CC
Gloucester City Council,23UE,HEAD OF NEIGHBOURHOOD SERVICES,GN100,OTHER MINOR SUPPLIES SERVICES,5590,25/05/2015,24/05/2015,3DHubsNL,Amsterdam,REDACTED,471565******1326,7338,QUICK-COPY AND REPRODUCTION SERVICES,88.59,Pound Sterling (826),1,88.59,Debit,7.49875E+22,02/06/2015,GLOUCESTER CC
Gloucester City Council,23UE,HEAD OF NEIGHBOURHOOD SERVICES,GN100,OTHER MINOR SUPPLIES SERVICES,5590,27/05/2015,26/05/2015,.UKGARDENSUPPLIES.,CO.UK 0175728,REDACTED,471565******1326,5261,NURSERIES  LAWN AND GARDEN SUPPLY STORES,39.99,Pound Sterling (826),1,39.99,Debit,7.45792E+22,02/06/2015,GLOUCESTER CC
Gloucester City Council,23UE,HMO LICENCES,HE520,OPERATIONAL EQUIPMENT <5000,5012,07/05/2015,06/05/2015,Amazon Svcs Europe SAR,AMAZON.CO.UK,REDACTED,471565******8476,5942,BOOK STORES,-52.99,Pound Sterling (826),1,-52.99,Credit,7.43132E+22,02/06/2015,GLOUCESTER CC
Gloucester City Council,23UE,PEST CONTROL,HD400,FEES FOR SERVICES RECEIVED,5350,11/05/2015,08/05/2015,MIPERMIT PARKING-DOM,INTERNET,REDACTED,471565******8476,7523,AUTOMOBILE PARKING LOTS AND GARAGES,100,Pound Sterling (826),1,100,Debit,7.47451E+22,02/06/2015,GLOUCESTER CC
Gloucester City Council,23UE,HMO LICENCES,HE520,OPERATIONAL EQUIPMENT <5000,5012,21/05/2015,19/05/2015,CIEH,LNDON SE1 001,REDACTED,471565******8476,8699,MEMBERSHIP ORGANIZATIONS NOT ELSEWHERE CLASSIFIED,175,Pound Sterling (826),1,175,Debit,7.48305E+22,02/06/2015,GLOUCESTER CC
Gloucester City Council,23UE,CITY MUSEUM AND ART GALLERY,LM200,PUBLIC TRANSPORTATION,4061,04/05/2015,01/05/2015,LONDON MIDLAND TIC,MALVERN,REDACTED,471565******9991,4112,PASSENGER RAILWAYS,6.1,Pound Sterling (826),1,6.1,Debit,7.44247E+22,02/06/2015,GLOUCESTER CC
Gloucester City Council,23UE,FOLK MUSEUM,LM210,PUBLIC TRANSPORTATION,4061,04/05/2015,01/05/2015,LONDON MIDLAND TIC,MALVERN,REDACTED,471565******9991,4112,PASSENGER RAILWAYS,6.1,Pound Sterling (826),1,6.1,Debit,7.44247E+22,02/06/2015,GLOUCESTER CC
Gloucester City Council,23UE,FOLK MUSEUM,LM210,EVENTS,5952,12/05/2015,11/05/2015,PAYPAL *DAVEKKISTUD,35314369001,REDACTED,471565******9991,5945,HOBBY TOY  AND GAME SHOPS,19.99,Pound Sterling (826),1,19.99,Debit,7.49988E+22,02/06/2015,GLOUCESTER CC
Gloucester City Council,23UE,CITY MUSEUM AND ART GALLERY,LM200,ADVERTISING AND PUBLICITY,5702,14/05/2015,13/05/2015,FACEBOOK Z33GW7WJW2,www.fb.me/ads,REDACTED,471565******9991,7311,ADVERTISING SERVICES,20.21,Pound Sterling (826),1,20.21,Debit,7.49875E+22,02/06/2015,GLOUCESTER CC
Gloucester City Council,23UE,FOLK MUSEUM,LM210,ADVERTISING AND PUBLICITY,5702,14/05/2015,13/05/2015,FACEBOOK Z33GW7WJW2,www.fb.me/ads,REDACTED,471565******9991,7311,ADVERTISING SERVICES,20.21,Pound Sterling (826),1,20.21,Debit,7.49875E+22,02/06/2015,GLOUCESTER CC
Gloucester City Council,23UE,ARTS EDUCATIONAL PROMOTIONS,LA610,OPERATIONAL EQUIPMENT <5000,5012,18/05/2015,15/05/2015,FASTHOSTS INTERNET,3330142700,REDACTED,471565******9991,4816,COMPUTER NETWORK/INFORMATION SERVICES,19.2,Pound Sterling (826),1,19.2,Debit,7.48305E+22,02/06/2015,GLOUCESTER CC
Gloucester City Council,23UE,CITY MUSEUM AND ART GALLERY,LM200,EXHIBITS AND COLLECTIONS,5038,19/05/2015,18/05/2015,THE COLOUR CENTRE,GLOUCESTER,REDACTED,471565******9991,5231,GLASS  PAINT  WALLPAPER STORES,50.33,Pound Sterling (826),1,50.33,Debit,7.47451E+22,02/06/2015,GLOUCESTER CC
Gloucester City Council,23UE,CITY MUSEUM AND ART GALLERY,LM200,OPERATIONAL EQUIPMENT <5000,5012,29/05/2015,28/05/2015,ARGOS LTD,GLOUCESTER,REDACTED,471565******9991,5310,DISCOUNT STORES,89.98,Pound Sterling (826),1,89.98,Debit,7.45792E+22,02/06/2015,GLOUCESTER CC
Gloucester City Council,23UE,GUILDHALL BAR AND CAF�,LA210,CATERING PROVISIONS -LIQUOR,5111,04/05/2015,02/05/2015,TESCO STORES 6819,GLOUCESTER,REDACTED,471565******2470,5411,GROCERY STORES  SUPERMARKETS,14,Pound Sterling (826),1,14,Debit,7.46982E+22,02/06/2015,GLOUCESTER CC
Gloucester City Council,23UE,GUILDHALL BAR AND CAF�,LA210,CATERING PROVISIONS -FOOD,5110,07/05/2015,06/05/2015,ALDI,GLOUCESTER,REDACTED,471565******2470,5411,GROCERY STORES  SUPERMARKETS,14.29,Pound Sterling (826),1,14.29,Debit,7.40195E+22,02/06/2015,GLOUCESTER CC
Gloucester City Council,23UE,GUILDHALL BAR AND CAF�,LA210,CATERING PROVISIONS -FOOD,5110,08/05/2015,07/05/2015,ASDA SUPERSTORE,GLOUCESTER,REDACTED,471565******2470,5411,GROCERY STORES  SUPERMARKETS,29.38,Pound Sterling (826),1,29.38,Debit,7.46982E+22,02/06/2015,GLOUCESTER CC
Gloucester City Council,23UE,GUILDHALL BAR AND CAF�,LA210,CATERING PROVISIONS -LIQUOR,5111,08/05/2015,07/05/2015,SAINSBURYS S/MKTS,GLOUCESTER 22,REDACTED,471565******2470,5411,GROCERY STORES  SUPERMARKETS,14,Pound Sterling (826),1,14,Debit,7.45792E+22,02/06/2015,GLOUCESTER CC
Gloucester City Council,23UE,GUILDHALL BAR AND CAF�,LA210,CATERING PROVISIONS -FOOD,5110,11/05/2015,08/05/2015,MARKS & SPENCER PLC,GLOUCESTER,REDACTED,471565******2470,5411,GROCERY STORES  SUPERMARKETS,6.25,Pound Sterling (826),1,6.25,Debit,7.46982E+22,02/06/2015,GLOUCESTER CC
Gloucester City Council,23UE,GUILDHALL BAR AND CAF�,LA210,CATERING PROVISIONS -LIQUOR,5111,11/05/2015,08/05/2015,ALDI,GLOUCESTER,REDACTED,471565******2470,5411,GROCERY STORES  SUPERMARKETS,7.94,Pound Sterling (826),1,7.94,Debit,7.40195E+22,02/06/2015,GLOUCESTER CC
Gloucester City Council,23UE,GUILDHALL BAR AND CAF�,LA210,CATERING PROVISIONS -FOOD,5110,15/05/2015,14/05/2015,ALDI,GLOUCESTER,REDACTED,471565******2470,5411,GROCERY STORES  SUPERMARKETS,6.63,Pound Sterling (826),1,6.63,Debit,7.40195E+22,02/06/2015,GLOUCESTER CC
Gloucester City Council,23UE,GUILDHALL BAR AND CAF�,LA210,CATERING PROVISIONS -FOOD,5110,19/05/2015,18/05/2015,ALDI,CHELTENHAM,REDACTED,471565******2470,5411,GROCERY STORES  SUPERMARKETS,19.67,Pound Sterling (826),1,19.67,Debit,7.40195E+22,02/06/2015,GLOUCESTER CC
Gloucester City Council,23UE,GUILDHALL BAR AND CAF�,LA210,HIRE OF EQUIPMENT,5020,22/05/2015,20/05/2015,IKEA,BRISTOL 264,REDACTED,471565******2470,5719,MISCELLANEOUS HOUSE FURNISHING SPECIALITY STORES,55.8,Pound Sterling (826),1,55.8,Debit,7.48305E+22,02/06/2015,GLOUCESTER CC
Gloucester City Council,23UE,BLACKFRIARS CATERING,LA220,CATERING PROVISIONS -FOOD,5110,22/05/2015,21/05/2015,BOOKER LIMITED GLOUCESTER,GLOUCESTER,REDACTED,471565******2470,5811,CATERERS,49.27,Pound Sterling (826),1,49.27,Debit,7.44637E+22,02/06/2015,GLOUCESTER CC
Gloucester City Council,23UE,GUILDHALL BAR AND CAF�,LA210,CATERING PROVISIONS -FOOD,5110,01/06/2015,29/05/2015,TESCO STORE 2581,GLOUCESTER,REDACTED,471565******2470,5411,GROCERY STORES  SUPERMARKETS,58.19,Pound Sterling (826),1,58.19,Debit,7.46971E+22,02/06/2015,GLOUCESTER CC
Gloucester City Council,23UE,GUILDHALL BAR AND CAF�,LA210,CATERING PROVISIONS -FOOD,5110,01/06/2015,30/05/2015,HOLLAND & BARRETT,GLOUCESTER,REDACTED,471565******2470,5999,MISCELLANEOUS AND RETAIL STORES,7.56,Pound Sterling (826),1,7.56,Debit,7.45792E+22,02/06/2015,GLOUCESTER CC
Gloucester City Council,23UE,GUILDHALL BAR AND CAF�,LA210,CATERING PROVISIONS -FOOD,5110,02/06/2015,01/06/2015,ASDA SUPERSTORE,GLOUCESTER,REDACTED,471565******2470,5411,GROCERY STORES  SUPERMARKETS,109.52,Pound Sterling (826),1,109.52,Debit,7.46982E+22,02/06/2015,GLOUCESTER CC
Gloucester City Council,23UE,POLLUTION CONTROL,HE300,OTHER MINOR SUPPLIES SERVICES,5590,08/05/2015,07/05/2015,SCREWFIX DIRECT,YEOVIL,REDACTED,471565******4841,5211,LUMBER AND BUILDING MATERIALS STORES,45.72,Pound Sterling (826),1,45.72,Debit,7.45792E+22,02/06/2015,GLOUCESTER CC
Gloucester City Council,23UE,HEALTH ADMINISTRATION,HA200,VOCATIONAL TRAINING,2970,08/05/2015,07/05/2015,THE TRAINLINE.COM,RAIL TICKETS,REDACTED,471565******4841,4112,PASSENGER RAILWAYS,17.59,Pound Sterling (826),1,17.59,Debit,7.49989E+22,02/06/2015,GLOUCESTER CC
Gloucester City Council,23UE,ENVIRONMENTAL PLANNING,LM340,PUBLIC TRANSPORTATION,4061,11/05/2015,08/05/2015,THE TRAINLINE.COM,RAIL TICKETS,REDACTED,471565******4841,4112,PASSENGER RAILWAYS,7.29,Pound Sterling (826),1,7.29,Debit,7.49989E+22,02/06/2015,GLOUCESTER CC
Gloucester City Council,23UE,ECONOMIC DEVELOPMENT,FP300,PUBLIC TRANSPORTATION,4061,19/05/2015,18/05/2015,THE TRAINLINE.COM,RAIL TICKETS,REDACTED,471565******4841,4112,PASSENGER RAILWAYS,93.84,Pound Sterling (826),1,93.84,Debit,7.49989E+22,02/06/2015,GLOUCESTER CC
Gloucester City Council,23UE,STATIONERY SERVICES,RS150,STATIONERY,5302,21/05/2015,20/05/2015,GREEN MAGIC CO,SOUTHAMPTON,REDACTED,471565******4841,5999,MISCELLANEOUS AND RETAIL STORES,93,Pound Sterling (826),1,93,Debit,7.40853E+22,02/06/2015,GLOUCESTER CC
Gloucester City Council,23UE,MEMBERS SUPPORT,RC300,PUBLIC TRANSPORTATION,4061,21/05/2015,20/05/2015,THE TRAINLINE.COM,RAIL TICKETS,REDACTED,471565******4841,4112,PASSENGER RAILWAYS,219.61,Pound Sterling (826),1,219.61,Debit,7.49989E+22,02/06/2015,GLOUCESTER CC
Gloucester City Council,23UE,GUILDHALL EVENTS,LA200,FEES FOR SERVICES RECEIVED,5350,04/05/2015,01/05/2015,MIPERMIT PARKING-DOM,INTERNET,REDACTED,471565******7657,7523,AUTOMOBILE PARKING LOTS AND GARAGES,10,Pound Sterling (826),1,10,Debit,7.47451E+22,02/06/2015,GLOUCESTER CC
Gloucester City Council,23UE,GUILDHALL EVENTS,LA200,FEES FOR SERVICES RECEIVED,5350,04/05/2015,01/05/2015,MIPERMIT PARKING-DOM,INTERNET,REDACTED,471565******7657,7523,AUTOMOBILE PARKING LOTS AND GARAGES,10,Pound Sterling (826),1,10,Debit,7.47451E+22,02/06/2015,GLOUCESTER CC
Gloucester City Council,23UE,GUILDHALL EVENTS,LA200,FEES FOR SERVICES RECEIVED,5350,04/05/2015,02/05/2015,MIPERMIT PARKING-DOM,INTERNET,REDACTED,471565******7657,7523,AUTOMOBILE PARKING LOTS AND GARAGES,10,Pound Sterling (826),1,10,Debit,7.47451E+22,02/06/2015,GLOUCESTER CC
Gloucester City Council,23UE,GUILDHALL EVENTS,LA200,FEES FOR SERVICES RECEIVED,5350,06/05/2015,05/05/2015,MIPERMIT PARKING-DOM,INTERNET,REDACTED,471565******7657,7523,AUTOMOBILE PARKING LOTS AND GARAGES,10,Pound Sterling (826),1,10,Debit,7.47451E+22,02/06/2015,GLOUCESTER CC
Gloucester City Council,23UE,GUILDHALL EVENTS,LA200,FEES FOR SERVICES RECEIVED,5350,08/05/2015,07/05/2015,MIPERMIT PARKING-DOM,INTERNET,REDACTED,471565******7657,7523,AUTOMOBILE PARKING LOTS AND GARAGES,10,Pound Sterling (826),1,10,Debit,7.47451E+22,02/06/2015,GLOUCESTER CC
Gloucester City Council,23UE,GUILDHALL EVENTS,LA200,ADVERTISING AND PUBLICITY,5702,12/05/2015,11/05/2015,WWW.INSTANTPRINT.C,01709 382202,REDACTED,471565******7657,7338,QUICK-COPY AND REPRODUCTION SERVICES,23.99,Pound Sterling (826),1,23.99,Debit,7.45792E+22,02/06/2015,GLOUCESTER CC
Gloucester City Council,23UE,GLOUCESTER GUILDHALL,LA100,GENERAL REPAIR/MAINT BUILDINGS,3000,13/05/2015,12/05/2015,WILKO RETAIL LIMIT,GLOUCESTER 14,REDACTED,471565******7657,5722,HOUSEHOLD APPLIANCE STORES,41.3,Pound Sterling (826),1,41.3,Debit,7.45792E+22,02/06/2015,GLOUCESTER CC
Gloucester City Council,23UE,FOLK MUSEUM,LM210,OPERATIONAL EQUIPMENT <5000,5012,15/05/2015,14/05/2015,Amazon UK Retail,AMAZON.CO.UK,REDACTED,471565******7657,5969,ALL OTHER DIRECT MARKETERS,249,Pound Sterling (826),1,249,Debit,7.43132E+22,02/06/2015,GLOUCESTER CC
Gloucester City Council,23UE,GUILDHALL EVENTS,LA200,SUBSISTENCE (NON - TRAINING),5500,18/05/2015,15/05/2015,ALSTON HOUSE HOTEL LTD,BRIGHTON,REDACTED,471565******7657,7011,LODGING  HOTELS  MOTELS  RESORTS,120,Pound Sterling (826),1,120,Debit,7.49168E+22,02/06/2015,GLOUCESTER CC
Gloucester City Council,23UE,BLACKFRIARS,LA609,MAINTENANCE OF EQUIPMENT,5030,18/05/2015,15/05/2015,LIGHTS4FUN.CO.UK,HARROGATE,REDACTED,471565******7657,5065,ELECTRICAL PARTS AND EQUIPMENT,67.28,Pound Sterling (826),1,67.28,Debit,7.40566E+22,02/06/2015,GLOUCESTER CC
Gloucester City Council,23UE,GLOUCESTER GUILDHALL,LA100,VOCATIONAL TRAINING,2970,18/05/2015,17/05/2015,Groupon,www.groupon.c,REDACTED,471565******7657,7278,BUYING/SHOPPING SERVICES  CLUBS,79,Pound Sterling (826),1,79,Debit,7.49875E+22,02/06/2015,GLOUCESTER CC
Gloucester City Council,23UE,GUILDHALL CINEMA,LA202,ADVERTISING AND PUBLICITY,5702,19/05/2015,18/05/2015,WWW.INSTANTPRINT.C,01709 382202,REDACTED,471565******7657,7338,QUICK-COPY AND REPRODUCTION SERVICES,25.99,Pound Sterling (826),1,25.99,Debit,7.45792E+22,02/06/2015,GLOUCESTER CC
Gloucester City Council,23UE,GUILDHALL EVENTS,LA200,ADVERTISING AND PUBLICITY,5702,19/05/2015,18/05/2015,GODADDY COM EUROPE,020 7979 2661,REDACTED,471565******7657,4816,COMPUTER NETWORK/INFORMATION SERVICES,10.48,Pound Sterling (826),1,10.48,Debit,7.49293E+22,02/06/2015,GLOUCESTER CC
Gloucester City Council,23UE,BLACKFRIARS CATERING,LA220,FEES FOR SERVICES RECEIVED,5350,21/05/2015,20/05/2015,TOOLSTATION LTD,GLOUCESTER,REDACTED,471565******7657,5251,HARDWARE STORES,30.27,Pound Sterling (826),1,30.27,Debit,7.49168E+22,02/06/2015,GLOUCESTER CC
Gloucester City Council,23UE,CITY MUSEUM AND ART GALLERY,LM200,ADVERTISING AND PUBLICITY,5702,21/05/2015,20/05/2015,FACEBOOK QHHMX72KW2,www.fb.me/ads,REDACTED,471565******7657,7311,ADVERTISING SERVICES,200.38,Pound Sterling (826),1,200.38,Debit,7.49875E+22,02/06/2015,GLOUCESTER CC
Gloucester City Council,23UE,GLOUCESTER GUILDHALL,LA100,FEES FOR SERVICES RECEIVED,5350,22/05/2015,21/05/2015,WILKO RETAIL LIMIT,GLOUCESTER 14,REDACTED,471565******7657,5722,HOUSEHOLD APPLIANCE STORES,8.07,Pound Sterling (826),1,8.07,Debit,7.45792E+22,02/06/2015,GLOUCESTER CC
Gloucester City Council,23UE,BLACKFRIARS CATERING,LA220,OPERATIONAL EQUIPMENT <5000,5012,28/05/2015,27/05/2015,Amazon Svcs Europe SAR,AMAZON.CO.UK,REDACTED,471565******7657,5942,BOOK STORES,9.89,Pound Sterling (826),1,9.89,Debit,7.43132E+22,02/06/2015,GLOUCESTER CC
Gloucester City Council,23UE,BLACKFRIARS CATERING,LA220,OPERATIONAL EQUIPMENT <5000,5012,29/05/2015,28/05/2015,Amazon Svcs Europe SAR,AMAZON.CO.UK,REDACTED,471565******7657,5942,BOOK STORES,2.05,Pound Sterling (826),1,2.05,Debit,7.43132E+22,02/06/2015,GLOUCESTER CC
Gloucester City Council,23UE,BLACKFRIARS CATERING,LA220,OPERATIONAL EQUIPMENT <5000,5012,29/05/2015,28/05/2015,Amazon Svcs Europe SAR,AMAZON.CO.UK,REDACTED,471565******7657,5942,BOOK STORES,9.49,Pound Sterling (826),1,9.49,Debit,7.43132E+22,02/06/2015,GLOUCESTER CC
Gloucester City Council,23UE,GUILDHALL CINEMA,LA202,ADVERTISING AND PUBLICITY,5702,01/06/2015,29/05/2015,WWW.INSTANTPRINT.C,01709 382202,REDACTED,471565******7657,7338,QUICK-COPY AND REPRODUCTION SERVICES,21.99,Pound Sterling (826),1,21.99,Debit,7.45792E+22,02/06/2015,GLOUCESTER CC
Gloucester City Council,23UE,BLACKFRIARS CATERING,LA220,OPERATIONAL EQUIPMENT <5000,5012,01/06/2015,29/05/2015,Amazon UK Marketplace,800-279-6620,REDACTED,471565******7657,5999,MISCELLANEOUS AND RETAIL STORES,3.72,Pound Sterling (826),1,3.72,Debit,7.43132E+22,02/06/2015,GLOUCESTER CC
Gloucester City Council,23UE,BLACKFRIARS,LA609,OPERATIONAL EQUIPMENT <5000,5012,01/06/2015,29/05/2015,Amazon UK Marketplace,800-279-6620,REDACTED,471565******7657,5999,MISCELLANEOUS AND RETAIL STORES,3.21,Pound Sterling (826),1,3.21,Debit,7.43132E+22,02/06/2015,GLOUCESTER CC
Gloucester City Council,23UE,BLACKFRIARS,LA609,OPERATIONAL EQUIPMENT <5000,5012,01/06/2015,29/05/2015,Amazon Svcs Europe SAR,AMAZON.CO.UK,REDACTED,471565******7657,5942,BOOK STORES,8.95,Pound Sterling (826),1,8.95,Debit,7.43132E+22,02/06/2015,GLOUCESTER CC
Gloucester City Council,23UE,BLACKFRIARS,LA609,OPERATIONAL EQUIPMENT <5000,5012,01/06/2015,29/05/2015,Amazon UK Marketplace,800-279-6620,REDACTED,471565******7657,5999,MISCELLANEOUS AND RETAIL STORES,13.74,Pound Sterling (826),1,13.74,Debit,7.43132E+22,02/06/2015,GLOUCESTER CC
Gloucester City Council,23UE,GUILDHALL EVENTS,LA200,FEES FOR SERVICES RECEIVED,5350,02/06/2015,01/06/2015,MIPERMIT PARKING-DOM,INTERNET,REDACTED,471565******7657,7523,AUTOMOBILE PARKING LOTS AND GARAGES,15,Pound Sterling (826),1,15,Debit,7.47451E+22,02/06/2015,GLOUCESTER CC
Gloucester City Council,23UE,GUILDHALL EVENTS,LA200,FEES FOR SERVICES RECEIVED,5350,02/06/2015,01/06/2015,MIPERMIT PARKING-DOM,INTERNET,REDACTED,471565******7657,7523,AUTOMOBILE PARKING LOTS AND GARAGES,10,Pound Sterling (826),1,10,Debit,7.47451E+22,02/06/2015,GLOUCESTER CC
Gloucester City Council,23UE,BLACKFRIARS CATERING,LA220,GENERAL REPAIR/MAINT BUILDINGS,3000,02/06/2015,01/06/2015,IKEA ONLINE,SHOP ONLINE,REDACTED,471565******7657,5719,MISCELLANEOUS HOUSE FURNISHING SPECIALITY STORES,180.5,Pound Sterling (826),1,180.5,Debit,7.44247E+22,02/06/2015,GLOUCESTER CC
Gloucester City Council,23UE,REGISTRATION OF ELECTORS,RS400,FEES FOR SERVICES RECEIVED,5350,08/05/2015,07/05/2015,THRIFTY CAR AND VAN RE,GLOUCESTER,REDACTED,471565******8712,3395,THRIFTY RENT-A-CAR,150,Pound Sterling (826),1,150,Debit,7.46574E+22,02/06/2015,GLOUCESTER CC
Gloucester City Council,23UE,REGISTRATION OF ELECTORS,RS400,FEES FOR SERVICES RECEIVED,5350,08/05/2015,07/05/2015,THRIFTY CAR AND VAN RE,GLOUCESTER,REDACTED,471565******8712,3395,THRIFTY RENT-A-CAR,197.78,Pound Sterling (826),1,197.78,Debit,7.46574E+22,02/06/2015,GLOUCESTER CC
Gloucester City Council,23UE,REGISTRATION OF ELECTORS,RS400,FEES FOR SERVICES RECEIVED,5350,08/05/2015,07/05/2015,B & Q,GLOUCESTER GL,REDACTED,471565******8712,5211,LUMBER AND BUILDING MATERIALS STORES,32.92,Pound Sterling (826),1,32.92,Debit,7.45792E+22,02/06/2015,GLOUCESTER CC
Gloucester City Council,23UE,REGISTRATION OF ELECTORS,RS400,FEES FOR SERVICES RECEIVED,5350,11/05/2015,08/05/2015,BIZ STATIONERY SUPERSTORE,GLOUCESTER,REDACTED,471565******8712,5111,STATIONERY OFFICE SUPPLIES PRINTING AND WRITING PAPER,5.25,Pound Sterling (826),1,5.25,Debit,7.44637E+22,02/06/2015,GLOUCESTER CC
Gloucester City Council,23UE,REGISTRATION OF ELECTORS,RS400,FEES FOR SERVICES RECEIVED,5350,11/05/2015,08/05/2015,TESCO PFS 3778,GLOUCESTER,REDACTED,471565******8712,5541,SERVICE STATIONS,13.86,Pound Sterling (826),1,13.86,Debit,7.46971E+22,02/06/2015,GLOUCESTER CC
Gloucester City Council,23UE,REGISTRATION OF ELECTORS,RS400,FEES FOR SERVICES RECEIVED,5350,11/05/2015,08/05/2015,STAPLES UK,GLOUCESTER 05,REDACTED,471565******8712,5943,STATIONERY  OFFICE AND SCHOOL SUPPLY STO,99.8,Pound Sterling (826),1,99.8,Debit,7.45792E+22,02/06/2015,GLOUCESTER CC
Gloucester City Council,23UE,REGISTRATION OF ELECTORS,RS400,FEES FOR SERVICES RECEIVED,5350,12/05/2015,11/05/2015,THRIFTY CAR AND VAN RE,GLOUCESTER,REDACTED,471565******8712,3395,THRIFTY RENT-A-CAR,-90.5,Pound Sterling (826),1,-90.5,Credit,7.46574E+22,02/06/2015,GLOUCESTER CC
Gloucester City Council,23UE,CLIENT REVS & BENS CONTRACT,RT240,COURT FEES,5358,06/05/2015,05/05/2015,HMCOURTS-SERVICE.G,1452420100,REDACTED,471565******5409,9222,FINES,708,Pound Sterling (826),1,708,Debit,7.45792E+22,02/06/2015,GLOUCESTER CC
Gloucester City Council,23UE,COUNTRYSIDE UNIT,LP201,MAJOR R AND M - VEHICLES,4010,15/05/2015,14/05/2015,AUTOGLASS,CARDINGTON,REDACTED,471565******5409,5533,AUTOMOTIVE PARTS  ACCESSORIES STORES,341.58,Pound Sterling (826),1,341.58,Debit,7.47451E+22,02/06/2015,GLOUCESTER CC
